Cogmind - Beta 14 @@@ ROGUE MODE // 2024.09.08 @ 18:52:21 Player: N.W.L Result: Destroyed by H-71 Marshal with Heavy Mass Driver Performance ------------- Evolutions (5) 2500 Regions Visited (21) 4200 Robots Destroyed (345) 1725 Value Destroyed (11001) 11001 Prototype IDs (88) 1760 Alien Tech Used (0) 0 Bonus (5537) 5537 TOTAL SCORE: 26723 Bonus ------- Triggered High Security 500 High Alert Combat Kills 2387 Follower Combat Kills 1890 Network Hubs Disabled 600 Aligned with FarCom 300 Met Data Miner 300 Built Enhanced Grunts 300 Met R17 at Cetus 500 Friendly Fire -1240 Cogmind --------- Core Integrity 0/1000 Matter 26/300 Energy 100/100 System Corruption 89% Temperature Cool (0) Movement Core (50) Location -5/Hub_04(d) Parts ------- > --- POWER (1) -------- (None) > --- PROPULSION (4) --- (None) > --- UTILITY (8) ------ (None) > --- WEAPON (4) ------- (None) > --- INVENTORY (5) ---- Cargo Storage Unit Experimental Targeting Computer Experimental Phase Shifter Disruptor Cannon Peak State ------------ > --- POWER ------------ Quantum Reactor > --- PROPULSION ------- Armored Medium Treads Enhanced Biometal Leg Treaded Centrium-Carbon Exoskeleton Armored Wheel > --- UTILITY ---------- Armored Scrap Engine Experimental Heat Sink Huge Storage Unit Experimental Phase Shifter Experimental Phase Shifter Centrium Medium Armor Plating Centrium Medium Armor Plating > --- WEAPON ----------- EMDS EMDS > --- INVENTORY -------- Quantum Reactor Quantum Reactor Advanced Power Amplifier Experimental Heat Sink Improved Coolant Injector Cargo Storage Unit Advanced Energy Well Experimental Targeting Computer Experimental Phase Shifter Experimental Thermal Shield Experimental EM Disruption Field Experimental EM Disruption Field Improved Hacking Suite Improved Hacking Suite Improved System Restoration Module Long-range Tractor Beam EMDS EMDS Neutron Cannon Heavy Shock Bomb Launcher Advanced Datajack [Rating: 156] Favorites ----------- Power Constructs Engine Ion Engine Power Core Constructs Reactor Quantum Reactor Propulsion Light Treads Treads Light Treads Leg Improved VSS Leg Wheel Compact Wheel Hover Unit Aerolev Unit Flight Unit Nuclear Pulse Thruster Utility Armored Scrap Engine Device Armored Scrap Engine Storage High-capacity Storage Unit Processor Advanced Signal Interpreter Hackware Hacking Suite Protection Hardened Light Armor Plating Weapon Improved Assault Rifle Energy Gun Force Rifle Energy Cannon Phase Cannon Ballistic Gun Improved Assault Rifle Ballistic Cannon Light Cannon Launcher Rocket Launcher Special Weapon Mining Laser Slashing Weapon Makeshift Sword Special Melee Weapon Improved Datajack Build | -11 -10 -10 -9 -9 -9 -8 -8 -8 -8 -6 -6 -6 -6 -6 -6 -5 -5 -5 -5 -5 -5 ------- Run | Yrd Mat Min Mat Min Exi Min Mat Sto Rec Fac Was Fac Low Low Dat Pro Fac Ext Cet Arc Hub Slots Evolved 10 | . . . 2 . . . 2 . . 4 . . . . . . 2 . . . . Power . | . . . . . . . . . . . . . . . . . . . . . . Propulsion 2 | . . . . . . . 1 . . 1 . . . . . . . . . . . Utility 6 | . . . 1 . . . 1 . . 2 . . . . . . 2 . . . . Weapon 2 | . . . 1 . . . . . . 1 . . . . . . . . . . . Parts Attached 294 | . 13 10 40 1 20 5 7 42 23 7 3 15 17 5 . 2 6 10 7 9 52 Power 18 | . 1 1 3 1 . 2 1 3 1 . . 1 . . . . 1 . . . 3 Engine 14 | . 1 1 3 1 . 2 1 2 1 . . 1 . . . . 1 . . . . Core 1 | . . . . . . . . 1 . . . . . . . . . . . . . Reactor 3 | . . . . . . . . . . . . . . . . . . . . . 3 Propulsion 54 | . 2 2 8 . 2 1 3 12 3 . . 4 2 . . . . 4 1 4 6 Treads 37 | . 2 1 8 . 2 1 3 10 3 . . . . . . . . 2 . 3 2 Leg 8 | . . . . . . . . . . . . 2 . . . . . 1 1 1 3 Wheel 6 | . . 1 . . . . . . . . . 1 2 . . . . 1 . . 1 Hover 1 | . . . . . . . . 1 . . . . . . . . . . . . . Flight 2 | . . . . . . . . 1 . . . 1 . . . . . . . . . Utility 95 | . 2 . 4 . 6 1 2 9 4 5 1 . 13 5 . 1 3 3 4 3 29 Device 48 | . . . . . 2 . . 3 2 3 1 . 10 4 . 1 2 2 1 3 14 Storage 5 | . 1 . . . 1 . 1 . . . . . . . . . . 1 . . 1 Processor 5 | . . . . . . . . . . 1 . . 1 1 . . 1 . . . 1 Hackware 7 | . 1 . 1 . . . . . . . . . 1 . . . . . 1 . 3 Protection 30 | . . . 3 . 3 1 1 6 2 1 . . 1 . . . . . 2 . 10 Artifact . | . . . . . . . . . . . . . . . . . . . . . . Weapon 127 | . 8 7 25 . 12 1 1 18 15 2 2 10 2 . . 1 2 3 2 2 14 Energy Gun 23 | . 2 . 5 . 1 . . 6 1 2 . 3 . . . . . 2 . . 1 Energy Cannon 18 | . . . . . . . . 6 . . . 1 . . . 1 1 . . . 9 Ballistic Gun 38 | . 4 . 9 . 7 . . 4 7 . . 1 1 . . . . 1 1 2 1 Ballistic Cannon 9 | . 2 4 3 . . . . . . . . . . . . . . . . . . Launcher 15 | . . 1 3 . 1 1 . 1 . . 1 2 1 . . . . . 1 . 3 Special Weapon 13 | . . 2 5 . 1 . . . 3 . . 2 . . . . . . . . . Impact Weapon . | . . . . . . . . . . . . . . . . . . . . . . Slashing Weapon 6 | . . . . . 1 . 1 . 2 . 1 1 . . . . . . . . . Piercing Weapon . | . . . . . . . . . . . . . . . . . . . . . . Special Melee Weapon 5 | . . . . . 1 . . 1 2 . . . . . . . 1 . . . . Unidentified Prototypes 24 | . . . 2 . 1 . . 7 1 . . 3 . . . . . . 2 2 6 Corrupted Parts 5 | . . . . . . . . . . . . . . . . . . . . . 5 System Corruption 33 | . . . . . . . . . . . . . . . . . . . . . 33 Parts Lost 53 | . 1 2 6 . 5 1 . . 3 . . 8 . 1 . 1 . 2 . . 23 Power 6 | . . . 2 . . . . . . . . 2 . . . . . . . . 2 Propulsion 20 | . . 2 2 . 1 . . . 1 . . 5 . 1 . 1 . 2 . . 5 Utility 10 | . . . 1 . 1 1 . . 2 . . . . . . . . . . . 5 Weapon 17 | . 1 . 1 . 3 . . . . . . 1 . . . . . . . . 11 Highest Loss Streak 9 | . 1 1 2 . 2 1 . . 3 . . 3 . 1 . 1 . 1 . . 9 To Critical Strikes 5 | . . 1 1 . 3 . . . . . . . . . . . . . . . . Average Slot Usage (%) 80 | . 98 98 95 99 81 88 84 83 73 55 66 63 66 62 53 53 55 74 70 75 76 Engine 6 | . 14 14 7 10 11 11 9 7 5 1 6 2 . . . . 1 . . . . Core 1 | . . . . . . . . 1 3 4 . 2 . . . . 1 1 3 5 2 Treads 15 | . 27 24 21 22 22 22 26 26 20 6 6 3 . 6 6 6 5 . 7 7 9 Wheel 1 | . . 2 . . . . . . . . . . 14 16 13 12 5 5 . . 1 Device 8 | . . . . . 1 11 9 7 8 8 13 13 12 16 20 19 19 22 13 11 13 Storage 8 | . 14 14 11 11 10 11 9 9 9 6 6 6 6 1 . . . 4 5 5 5 Processor 2 | . . . . . . . . . . 6 6 6 5 10 13 13 11 11 11 11 4 Hackware 3 | . 13 14 11 11 . . . . . . . . . . . . . . 3 5 4 Protection 6 | . . . 10 11 21 11 13 8 4 3 . . . . . . . . 4 5 8 Energy Gun 4 | . 5 . 7 . 1 11 9 9 3 9 22 9 6 2 . . . . . 1 . Energy Cannon 1 | . . . . . . . . 3 . . . 1 . . . . 4 5 . 2 6 Ballistic Gun 9 | . 14 . 21 33 7 . . 7 14 5 . . 6 1 . . . 3 10 15 7 Ballistic Cannon 2 | . 7 27 1 . . . . . . . . 1 . . . . . . . . . Slashing Weapon 1 | . . . . . 1 8 3 1 . . 3 4 6 1 . . . . . . . Peak Build Rating 156 | . 11 15 25 22 46 45 47 52 56 66 74 86 74 74 51 55 66 88 114 129 156 Average Rating 48 | . 9 12 21 21 18 44 45 44 44 58 72 75 64 56 51 51 60 81 103 123 130 On Entrance 51 | 6 6 11 15 20 22 44 43 46 50 49 66 68 68 74 51 51 45 65 86 113 129 Naked Turns 13 | . . . . . . . . . . . . . . . . . . . . . 13 Heaviest Build 178 | 13 51 55 65 63 69 71 166 178 168 159 159 176 174 174 3 11 23 111 122 129 164 Greatest Support 108 | 20 40 40 40 40 40 40 60 60 83 83 83 83 42 42 3 3 15 55 94 108 107 Greatest Overweight (x) 57 | . 1 3 4 1 1 1 2 57 3 1 1 10 10 4 . 3 1 9 2 39 13 Average Overweight (x) 1 | . . 1 1 1 . 1 1 2 1 1 1 2 4 . . . . 3 1 1 5 Largest Inventory Capacity 30 | . 20 20 20 20 20 20 30 30 30 30 30 30 30 30 5 5 5 25 25 25 25 Average Capacity 23 | . 14 20 20 20 19 20 21 30 30 30 30 30 30 12 5 5 5 22 25 25 24 Most Carried 30 | . 20 20 20 20 20 20 25 30 30 29 30 30 30 30 5 5 5 19 25 25 25 Average Carried 20 | . 12 19 19 20 12 19 19 29 24 26 29 29 29 12 5 4 4 14 19 23 23 Final Capacity 30 | 8 20 20 20 20 20 20 30 30 30 30 30 30 30 5 5 5 5 25 25 25 5 Final Carried 30 | 6 20 20 20 20 18 20 25 30 25 27 30 30 29 5 5 5 5 14 25 24 5 Scrap Engine Consumption 172 | . . . . . . . . . 45 4 1 39 17 5 . . 2 33 9 8 9 Constructs Created 11 | . . . . . . . . . 4 . . 3 1 . . . 1 2 . . . Constructs Modified 56 | . . . . . . . . . 16 2 . 11 4 1 . . . 13 4 4 1 Class Distribution -------------------- 23% | Mutant 12% | Scavenger-Tank 10% | Commander-Mutant 9% | Hauler-Construct 8% | Tank 8% | Hauler-Mutant 6% | Commander-Tank 6% | Hauler-Tank 5% | Scavenger-Mutant Dominant Class ---------------- Mutant | -10/Materials Mutant | -10/Mines Scavenger-Tank | -9/Materials Tank | -9/Mines Mutant | -9/Exiles Scavenger-Mutant | -8/Mines Scavenger-Tank | -8/Materials Hauler-Tank | -8/Storage Commander-Tank | -8/Recycling Hauler-Construct | -6/Factory Hauler-Construct | -6/Waste Hauler-Construct | -6/Factory Hauler-Mutant | -6/Lower Caves Scavenger-Mutant | -6/Lower Caves Scavenger-Mutant | -6/Data Miner Scavenger-Mutant | -5/Proximity Caves Mutant | -5/Factory Commander-Mutant | -5/Extension Scavenger-Tank | -5/Cetus Scavenger-Gunner | -5/Archives Scavenger-Tank | -5/Hub_04(d) Resources | -11 -10 -10 -9 -9 -9 -8 -8 -8 -8 -6 -6 -6 -6 -6 -6 -5 -5 -5 -5 -5 -5 ----------- Run | Yrd Mat Min Mat Min Exi Min Mat Sto Rec Fac Was Fac Low Low Dat Pro Fac Ext Cet Arc Hub Matter Collected 9851 | 200 462 830 1037 190 1135 483 70 780 864 61 . 1089 389 60 . 6 . 236 168 380 1411 Remotely 225 | . . . . . . . . . . . . . . . . . . . . . 225 Salvage Created 14902 | . 781 1046 1999 688 300 540 117 1744 1546 61 39 1581 54 69 . . 21 492 281 345 3198 Parts 791 | . 61 59 124 26 57 21 10 88 71 2 2 77 6 2 . . 1 17 10 18 139 Haulers Intercepted 16 | . 2 . 4 . . . 1 6 . . . 2 . . . . . . . . 1 Recyclers Shooed 19 | . 3 1 4 4 . . . . . 1 . 6 . . . . . . . . . Parts Field Recycled . | . . . . . . . . . . . . . . . . . . . . . . Retrieved Matter . | . . . . . . . . . . . . . . . . . . . . . . Parts Self-Destructed 15 | . . . . . . . . . . . . . 13 2 . . . . . . . Prevented . | . . . . . . . . . . . . . . . . . . . . . . Kills | -11 -10 -10 -9 -9 -9 -8 -8 -8 -8 -6 -6 -6 -6 -6 -6 -5 -5 -5 -5 -5 -5 ------- Run | Yrd Mat Min Mat Min Exi Min Mat Sto Rec Fac Was Fac Low Low Dat Pro Fac Ext Cet Arc Hub Combat Hostiles Destroyed 205 | . 10 27 33 1 3 12 1 18 13 1 . 24 3 . . . . 7 3 2 47 Melee 3 | . . . . . . . . . . . . 2 . . . . . . . . 1 Guns 97 | . 9 . 21 1 3 8 . 14 13 1 . 7 . . . . . 2 1 2 15 Cannons 48 | . 1 24 2 . . . . 3 . . . 3 . . . . . 4 . . 11 AOE 41 | . . 3 10 . . 3 . . . . . 11 3 . . . . . . . 11 Classes Destroyed 23 | . 9 2 2 . 2 1 . 1 3 . 1 . . . . . . . . . 2 Worker 18 | . 4 1 4 2 . . . 2 . . . . . . . . . . . . 5 Builder 20 | . 2 2 5 1 . . . 1 3 . . 4 . . . . . 1 . . 1 Tunneler 7 | . . 5 . . . 1 . . . . . . . . . . 1 . . . . Hauler 16 | . 2 . 4 . . . 1 6 . . . 2 . . . . . . . . 1 Recycler 40 | . 1 5 7 7 . . . 4 11 . . 4 . . . . . . . . 1 Carrier 1 | . . . . . . . . . . . . . . . . . . . . . 1 Mechanic 5 | . 1 . . . . . . 3 . . . . . . . . . . . . 1 Operator 12 | . 2 . 3 . . . . 2 . . . . . . . . . . . 5 . Turret 1 | . . . . . 1 . . . . . . . . . . . . . . . . Watcher 11 | . 3 . 4 . . . . . . . . . . . . . . 1 2 . 1 Swarmer 32 | . 1 6 10 . . 3 . . . . . 7 3 . . . . . . . 2 Saboteur 4 | . . . . . . . . . . . . . . . . . . . . . 4 Grunt 96 | . 9 20 14 . . 6 . 10 4 1 . 7 . . . . . 6 . . 19 Brawler 4 | . . . 1 . . 2 . . . . . . . . . . . . . . 1 Duelist 6 | . . . . . . 1 . 1 1 . . 1 . . . . . . . . 2 Protector 5 | . . . . . . . . . 3 . . . . . . . . . . . 2 Sentry 29 | . . . 8 1 . . 1 6 4 . . 1 . . . . . 1 . 2 5 Demolisher 1 | . . . . . . . . . . . 1 . . . . . . . . . . Hunter 4 | . . . . . . . . 1 . . . 2 . . . . . . 1 . . Programmer 12 | . . . . . . . . . 2 . . 6 . . . . . . . . 4 Cetus Guard 2 | . . . . . . . . . . . . . . . . . . . 2 . . Lightning 8 | . . . . . . . . . . . . . . . . . . . . . 8 Scrapper 1 | . . . . . . . . . 1 . . . . . . . . . . . . Zionite 8 | . . . . . 8 . . . . . . . . . . . . . . . . Decomposer 1 | . . . . . . . . . . . . . 1 . . . . . . . . Assembled 4 | . . 1 . . 3 . . . . . . . . . . . . . . . . Best Kill Streak 10 | . 4 6 8 4 4 3 1 4 7 1 . 10 3 . . . 1 3 3 3 10 Combat Bots Only 9 | . 1 5 6 1 3 3 1 3 7 1 . 8 3 . . . . 1 2 1 9 Max Kills in Single Turn 8 | . 1 3 8 1 2 2 1 1 2 1 1 4 3 . . . 1 1 1 1 5 Gunslinging 1 | . . . . . 1 . . . 1 . . . . . . . . . . . 1 Exploded 4 | . . 3 3 . . 2 . . . . . 2 3 . . . . . . . 4 Melee 1 | . . . . . . . . . . . . 1 . . . . . . . . 1 Uniques/NPCs Destroyed 4 | . . . . . 4 . . . . . . . . . . . . . . . . 8R-AWN (-9/Exiles) EX-HEX (-9/Exiles) EX-BIN (-9/Exiles) EX-DEC (-9/Exiles) Combat | -11 -10 -10 -9 -9 -9 -8 -8 -8 -8 -6 -6 -6 -6 -6 -6 -5 -5 -5 -5 -5 -5 -------- Run | Yrd Mat Min Mat Min Exi Min Mat Sto Rec Fac Was Fac Low Low Dat Pro Fac Ext Cet Arc Hub Hostile Shots Fired 1189 | . 61 69 134 2 88 20 8 82 49 3 . 179 . 15 . 21 . 26 39 16 377 Missed 320 | . 17 31 33 1 13 5 3 29 10 . . 51 . 5 . 7 . 6 10 2 97 Damage Taken 16042 | . 584 416 1288 15 1362 233 46 844 738 44 . 2095 . 215 . 303 . 408 413 315 6723 Core 2080 | . 65 40 98 . 243 23 14 170 86 14 . 201 . 95 . 31 . 54 16 . 930 Absorbed by Shields 196 | . . . . . . . . . 6 14 . . . . . . . . 176 . . Reduced by Siege Mode 3 | . . . . . . . . . . . . . . . . . . . 3 . . Redirected to Shielding 72 | . . . . . . . . . . 9 . . . . . . . . 63 . . Ignored by Resistances 2180 | . . . . . . . . . . . . . . . . . . 6 179 69 1926 Regen/Repaired (Parts) 1462 | . . . 116 . . . . . . 21 . 422 212 113 . . . 156 135 91 196 Core Remaining (%) 55 | 100 . 58 . . . 9 . . 50 . . . . . . 59 . . . . . Volleys Fired 923 | . 90 85 123 20 94 8 . 77 63 5 1 111 4 1 . 5 8 51 12 25 140 Largest 4 | . 2 2 3 3 3 1 . 3 3 4 4 3 1 1 . 1 1 2 2 4 4 Hottest 241 | . 70 100 133 69 123 33 . 183 183 241 199 215 80 80 . 85 85 138 70 133 173 Shots Fired 1819 | . 176 155 299 60 132 38 4 208 144 19 4 147 6 1 . 5 8 74 13 76 250 Gun 1317 | . 154 . 251 60 110 30 4 174 128 19 3 110 5 1 . . . 18 4 76 170 Cannon 386 | . 22 141 22 . . . . 34 . . . 25 . . . 5 8 56 . . 73 Launcher 46 | . . 1 6 . 1 8 . . . . 1 12 1 . . . . . 9 . 7 Special 70 | . . 13 20 . 21 . . . 16 . . . . . . . . . . . . Kinetic 1075 | . 116 141 187 60 107 . . 101 107 3 . 11 . . . . . 9 4 75 154 Thermal 544 | . 59 13 106 . 21 . . 55 21 16 3 124 5 1 . 5 8 65 . 1 41 Explosive 37 | . . 1 6 . 1 8 . . . . 1 12 1 . . . . . . . 7 Electromagnetic 147 | . 1 . . . 3 30 4 52 . . . . . . . . . . 9 . 48 Robot Hit Streak 18 | . 10 9 11 11 17 12 7 16 18 7 2 11 1 2 . . 1 7 4 6 12 Robot Miss Streak 6 | . 5 4 4 2 4 3 1 4 4 1 1 4 1 . . . 2 4 2 4 6 Penetration Max 1 | . . . . . . . . . . . . 1 . . . . . . . . 1 Secondary Targets 9 | . . . 1 . 1 . . . 4 . . . . . . . . . . . 3 Max Gunslinging Chain 1 | . . . 1 . 1 . . . 1 . . . . . . . . . . . 1 Autonomous 89 | . . . . . 3 30 4 52 . . . . . . . . . . . . . Shots Hit Robots 1075 | . 95 83 143 37 99 31 5 148 112 15 2 74 2 1 . . 2 49 4 36 137 Core Hits 551 | . 39 43 74 15 31 23 2 63 38 3 2 67 4 1 . . 1 23 8 20 94 Critical Kills 23 | . 1 . . . . . . 1 . . . 6 . . . . . 1 1 1 12 Critical Parts Destroyed 10 | . . . . . . . . . . . . 2 . . . . . . . 2 6 Critical Strikes 69 | . 7 8 5 . . 2 . 3 . . . 12 . . . . . 2 1 6 23 Burn 17 | . 6 . 5 . . . . 1 . . . 4 . . . . . 1 . . . Meltdown 1 | . . . . . . . . . . . . . . . . . . 1 . . . Destroy 35 | . 1 . . . . . . 1 . . . 8 . . . . . . 1 6 18 Blast 8 | . . 8 . . . . . . . . . . . . . . . . . . . Corrupt 8 | . . . . . . 2 . 1 . . . . . . . . . . . . 5 Melee Attacks 91 | . . . . . 12 2 1 8 22 . 13 16 5 . . . . 12 . . . Impact . | . . . . . . . . . . . . . . . . . . . . . . Slashing 55 | . . . . . 9 2 1 6 3 . 13 16 5 . . . . . . . . Piercing . | . . . . . . . . . . . . . . . . . . . . . . Sneak Attacks 49 | . . . . . 11 1 1 5 19 . . 1 . . . . . 11 . . . Combat Hostiles 11 | . . . . . . . . . 11 . . . . . . . . . . . . Follow-up Attacks . | . . . . . . . . . . . . . . . . . . . . . . Damage Inflicted 29460 | . 1239 1663 3834 585 1934 1162 186 2898 1582 295 184 3606 159 26 . . 61 1228 708 1138 6972 Guns 15450 | . 1055 . 2475 585 1338 595 116 2359 1497 295 48 1355 46 26 . . . 206 65 1138 2251 Cannons 6186 | . 184 1563 227 . . . . 325 . . . 318 . . . . 61 1022 . . 2486 Explosions 6502 | . . 98 1132 . . 414 . . . . 136 1731 113 . . . . . 643 . 2235 Melee 1285 | . . . . . 572 153 70 214 74 . . 202 . . . . . . . . . Ramming 13 | . . 2 . . . . . . 11 . . . . . . . . . . . . Kinetic 11958 | . 738 1563 1733 585 1261 . . 1181 1209 30 . 92 . . . . . 191 65 1138 2172 Thermal 6660 | . 501 . 969 . 24 47 . 561 288 265 48 2106 46 26 . . 61 1037 . . 681 Explosive 4365 | . . 98 1132 . . 367 . . . . 136 1120 113 . . . . . . . 1399 Electromagnetic 5179 | . . . . . 77 595 116 942 . . . 86 . . . . . . 643 . 2720 Impact . | . . . . . . . . . . . . . . . . . . . . . . Slashing 1285 | . . . . . 572 153 70 214 74 . . 202 . . . . . . . . . Piercing . | . . . . . . . . . . . . . . . . . . . . . . Highest Corruption 89 | . . . 1 1 3 3 . 1 2 . 18 24 24 17 17 17 . . . . 89 Average Corruption 8 | . . . 1 1 1 3 . 1 1 . 13 19 18 17 17 17 . . . . 40 Corruption Purged 7 | . . . . . . . . . . . . . 7 . . . . . . . . Corruption Blocked . | . . . . . . . . . . . . . . . . . . . . . . Effects 428 | . . . 13 5 25 15 . 6 48 . 7 144 56 15 1 13 . . . . 80 Message Errors 105 | . . . 1 1 4 6 . 1 14 . 3 36 14 3 1 4 . . . . 17 Matter Fused 104 | . . . 4 2 11 2 . 2 12 . 1 33 11 2 . 2 . . . . 22 Heat Flow Errors 40 | . . . 2 1 2 1 . 1 6 . 1 14 7 1 . 1 . . . . 3 Energy Discharges 52 | . . . 4 1 6 3 . 1 6 . . 17 5 3 . 2 . . . . 4 Parts Rejected 3 | . . . . . . 1 . . . . 1 . . . . . . . . . 1 Parts Fused 6 | . . . . . 1 . . . 1 . . 1 2 . . 1 . . . . . Data Loss (minor) 42 | . . . . . . 1 . . 5 . 1 15 9 3 . . . . . . 8 Data Loss (major) 28 | . . . 2 . . . . . 2 . . 13 6 3 . 1 . . . . 1 Misfires 5 | . . . . . . . . 1 1 . . 1 2 . . . . . . . . Alerts 7 | . . . . . 1 1 . . 1 . . 3 . . . . . . . . 1 Misdirections 6 | . . . . . . . . . . . . 1 . . . 2 . . . . 3 Weapon Failures 30 | . . . . . . . . . . . . 10 . . . . . . . . 20 Overload Shots . | . . . . . . . . . . . . . . . . . . . . . . Overflow Damage 563 | . . . 111 . 62 81 . 62 6 . . 131 . . . . . . . . 110 Projectiles 37 | . . . 3 . . . . . . . . . . . . . . . . . 34 Explosions 293 | . . . 108 . . 15 . . . . . 94 . . . . . . . . 76 Melee 233 | . . . . . 62 66 . 62 6 . . 37 . . . . . . . . . Knockbacks 17 | . 2 11 2 . . . . . . . . . . . . . . 2 . . . Impact . | . . . . . . . . . . . . . . . . . . . . . . Kinetic 16 | . 2 10 2 . . . . . . . . . . . . . . 2 . . . Secondary 1 | . . 1 . . . . . . . . . . . . . . . . . . . Self-Inflicted Damage 306 | . . . 33 . . 41 . . . . . 60 . . . . . . . . 172 Shots 10 | . . . 2 . . 2 . . . . . 2 . . . . . . . . 4 Rammed . | . . . . . . . . . . . . . . . . . . . . . . Targets Rammed 2 | . . 1 . . . . . . 1 . . . . . . . . . . . . Kicked . | . . . . . . . . . . . . . . . . . . . . . . Crushed 2 | . . 1 . . . . . . 1 . . . . . . . . . . . . Highest Temperature 621 | . 194 108 456 191 256 179 . 318 621 227 179 408 254 71 . 225 20 194 . 63 442 Average Temperature 88 | . 51 22 119 29 99 60 . 75 208 136 82 109 98 34 . 51 5 55 . 13 100 Received Heat Transfer 2737 | . 354 147 483 . . 81 9 324 151 19 . 270 . 75 . 12 . 183 8 36 585 Effects 35 | . . . 11 . 1 . . . 20 . . 1 . . . . . . . . 2 Shutdowns 2 | . . . . . . . . . 1 . . . . . . . . . . . 1 Energy Bleed 8 | . . . 4 . 1 . . . 3 . . . . . . . . . . . . Interference 8 | . . . 6 . . . . . 2 . . . . . . . . . . . . Matter Decay 3 | . . . . . . . . . 2 . . 1 . . . . . . . . . Short Circuit 3 | . . . 1 . . . . . 1 . . . . . . . . . . . 1 Damage (minor) 2 | . . . . . . . . . 2 . . . . . . . . . . . . Damage (major) 9 | . . . . . . . . . 9 . . . . . . . . . . . . Siege Activations 1 | . . . . . . . . . . . . . . . . . . . 1 . . Total Turns 10 | . . . . . . . . . . . . . . . . . . . 10 . . Longest Duration 10 | . . . . . . . . . . . . . . . . . . . 10 . . Robots Corrupted 15 | . . . . . . 1 1 1 . . . . . . . . . . 2 . 10 Combat Hostiles 14 | . . . . . . 1 1 1 . . . . . . . . . . 2 . 9 Parts Fried 38 | . . . . . . 4 1 10 . . . . . . . . . . 4 . 19 Impact Corruptions . | . . . . . . . . . . . . . . . . . . . . . . Robots Melted 2 | . . . . . . . . . . . . 1 . . . . . 1 . . . Combat Hostiles 2 | . . . . . . . . . . . . 1 . . . . . 1 . . . Parts Melted 23 | . 1 . 4 . . . . 2 . 1 . 6 . . . . . 8 . . 1 Heat Transferred 11254 | . 1887 . 2035 . 50 50 . 999 472 635 116 3207 74 37 . . 74 1346 . . 272 Parts Sabotaged . | . . . . . . . . . . . . . . . . . . . . . . Parts Stolen . | . . . . . . . . . . . . . . . . . . . . . . Parts Stripped . | . . . . . . . . . . . . . . . . . . . . . . Power Chain Reactions 1 | . . . . . . . . . . . . . . . . . . . . . 1 Alert | -11 -10 -10 -9 -9 -9 -8 -8 -8 -8 -6 -6 -6 -6 -6 -6 -5 -5 -5 -5 -5 -5 ------- Run | Yrd Mat Min Mat Min Exi Min Mat Sto Rec Fac Was Fac Low Low Dat Pro Fac Ext Cet Arc Hub Peak Influence 2347 | . 212 270 593 314 . 194 106 500 394 448 166 362 . . . . 73 232 266 223 2347 Initial 409 | . . . 60 225 . . 54 44 187 409 156 85 . . . . 15 35 . 26 36 Average 208 | . 55 142 348 147 . 44 78 239 68 413 139 138 . . . . 54 63 96 150 1266 Maximum Alert Level 5 | . 1 1 2 1 . . . 2 1 2 . 1 . . . . . 1 1 1 5 Low Security (%) 66 | . 98 75 15 63 . 100 100 52 82 . 100 80 . . . . 100 89 96 83 1 Level 1 19 | . 1 24 48 36 . . . 21 17 . . 19 . . . . . 10 3 16 . Level 2 9 | . . . 35 . . . . 25 . 100 . . . . . . . . . . 15 Level 3 . | . . . . . . . . . . . . . . . . . . . . . 6 Level 4 3 | . . . . . . . . . . . . . . . . . . . . . 60 Level 5 . | . . . . . . . . . . . . . . . . . . . . . 9 High Security . | . . . . . . . . . . . . . . . . . . . . . 5 Max Security . | . . . . . . . . . . . . . . . . . . . . . . Squads Dispatched 54 | . 4 1 9 . . . . 7 . 1 . 10 . 1 . . . . 1 . 20 Investigation 15 | . 3 1 4 . . . . 2 . . . . . . . . . . 1 . 4 Extermination 9 | . . . . . . . . . . . . 6 . . . . . . . . 3 Reinforcement 18 | . 1 . 4 . . . . 3 . 1 . 4 . . . . . . . . 5 Assault 10 | . . . 1 . . . . 1 . . . . . 1 . . . . . . 7 Garrison 2 | . . . . . . . . 1 . . . . . . . . . . . . 1 Intercept . | . . . . . . . . . . . . . . . . . . . . . . Searches Triggered . | . . . . . . . . . . . . . . . . . . . . . . Data Miner Redirects 1 | . . . . . . . . . . . . . . . . . . . . . 1 Construction Impeded 4 | . . . . . . . . 2 . . . 2 . . . . . . . . . Haulers Reinforced 1 | . . . . . . . . . . 1 . . . . . . . . . . . Active Scanning Responses . | . . . . . . . . . . . . . . . . . . . . . . Cargo Convoy Interrupts . | . . . . . . . . . . . . . . . . . . . . . . Stealth | -11 -10 -10 -9 -9 -9 -8 -8 -8 -8 -6 -6 -6 -6 -6 -6 -5 -5 -5 -5 -5 -5 --------- Run | Yrd Mat Min Mat Min Exi Min Mat Sto Rec Fac Was Fac Low Low Dat Pro Fac Ext Cet Arc Hub Distress Signals 18 | . 1 . 3 . . . 1 . 2 . . 1 . . . . . 2 3 . 5 Communications Jammed 2 | . . . . . . . . . . . . . . . . . . . . . 2 Distress Signals 2 | . . . . . . . . . . . . . . . . . . . . . 2 Times Spotted 402 | . 17 30 47 2 36 13 6 46 14 2 7 34 . 13 . 4 . 19 10 17 85 Peak Tracking Total 11 | . 4 6 6 1 9 3 5 6 6 1 5 5 . 8 . 2 . 5 5 1 11 Tactical Retreats 32 | . . 5 1 . 4 1 . 3 . . 2 . . 6 . 2 . . . . 8 Traps | -11 -10 -10 -9 -9 -9 -8 -8 -8 -8 -6 -6 -6 -6 -6 -6 -5 -5 -5 -5 -5 -5 ------- Run | Yrd Mat Min Mat Min Exi Min Mat Sto Rec Fac Was Fac Low Low Dat Pro Fac Ext Cet Arc Hub Traps Triggered 10 | . 1 . 3 . . . . 1 . 1 . 2 . . . . . 2 . . . Indirectly . | . . . . . . . . . . . . . . . . . . . . . . Trap Hack Attempts . | . . . . . . . . . . . . . . . . . . . . . . Triggered . | . . . . . . . . . . . . . . . . . . . . . . Disarmed . | . . . . . . . . . . . . . . . . . . . . . . Reprogrammed . | . . . . . . . . . . . . . . . . . . . . . . Reused . | . . . . . . . . . . . . . . . . . . . . . . Traps Extracted . | . . . . . . . . . . . . . . . . . . . . . . Installed . | . . . . . . . . . . . . . . . . . . . . . . Triggered 3 | . . . . . . . . . . . . . . 1 . 2 . . . . . Machines | -11 -10 -10 -9 -9 -9 -8 -8 -8 -8 -6 -6 -6 -6 -6 -6 -5 -5 -5 -5 -5 -5 ---------- Run | Yrd Mat Min Mat Min Exi Min Mat Sto Rec Fac Was Fac Low Low Dat Pro Fac Ext Cet Arc Hub Machines Disabled 55 | . . 1 9 . 6 1 . 8 . . . 7 . . . . 1 . . 4 18 Max in Single Turn 10 | . . 1 4 . 1 1 . 1 . . . 2 . . . . 1 . . 1 10 Garrison Access 1 | . . . . . . . . 1 . . . . . . . . . . . . . Network Hub 3 | . . . . . . . . . . . . . . . . . . . . . 3 Machines Repaired . | . . . . . . . . . . . . . . . . . . . . . . Machines Dismantled . | . . . . . . . . . . . . . . . . . . . . . . Machines Sabotaged 1 | . . . . . . . . . . . . . . . . . . . . . 1 Overloaded Fab Kills . | . . . . . . . . . . . . . . . . . . . . . . Hacking | -11 -10 -10 -9 -9 -9 -8 -8 -8 -8 -6 -6 -6 -6 -6 -6 -5 -5 -5 -5 -5 -5 --------- Run | Yrd Mat Min Mat Min Exi Min Mat Sto Rec Fac Was Fac Low Low Dat Pro Fac Ext Cet Arc Hub Machines Accessed 75 | . 9 2 10 . 2 . 1 11 14 . . 8 3 . 3 . 2 4 1 . 5 Terminals 43 | . 7 1 6 . . . . 9 6 . . 4 . . . . 1 4 1 . 4 Fabricators 2 | . . . . . . . . . . . . 2 . . . . . . . . . Repair Stations 4 | . . . 2 . . . . 1 . . . 1 . . . . . . . . . Recycling Units 13 | . 2 . 1 . . . 1 . 7 . . 1 . . . . 1 . . . . Scanalyzers 1 | . . . 1 . . . . . . . . . . . . . . . . . . Garrison Access 2 | . . . . . . . . 1 . . . . . . . . . . . . 1 Total Hacks 237 | . 32 4 36 . 2 . 3 31 45 . . 20 5 . 23 . 4 14 4 . 14 Successful 149 | . 21 3 24 . 2 . 1 15 32 . . 7 5 . 23 . 3 6 1 . 6 Failed 87 | . 10 1 12 . . . 2 16 13 . . 13 . . . . 1 8 3 . 8 Catastrophic 9 | . . 1 . . . . . . 1 . . 4 . . . . . 2 . . 1 Database Lockouts 1 | . 1 . . . . . . . . . . . . . . . . . . . . Manual 97 | . 19 3 12 . 1 . . 16 26 . . 2 . . . . 1 8 1 . 8 Terminals 148 | . 27 3 24 . . . . 25 26 . . 12 . . . . 3 14 4 . 10 Fabricators 3 | . . . . . . . . . . . . 3 . . . . . . . . . Repair Stations 12 | . . . 7 . . . . 2 . . . 3 . . . . . . . . . Recycling Units 29 | . 5 . 1 . . . 3 . 17 . . 2 . . . . 1 . . . . Scanalyzers 4 | . . . 4 . . . . . . . . . . . . . . . . . . Garrison Access 8 | . . . . . . . . 4 . . . . . . . . . . . . 4 Terminal Hacks 82 | . 8 3 7 . 2 . . 7 13 . . 4 5 . 23 . 1 4 1 . 4 Record 10 | . . . . . 1 . . . . . . . 3 . 6 . . . . . . Part Schematic 11 | . . 2 . . . . . . . . . . . . 9 . . . . . . Robot Schematic 5 | . . . . . . . . . . . . . . . 5 . . . . . . Robot Analysis 9 | . 2 . . . . . . 1 4 . . 1 . . . . . 1 . . . Prototype ID Bank 7 | . 1 . . . . . . . 2 . . 1 . . 3 . . . . . . Open Door 6 | . . 1 . . . . . 2 . . . . 2 . . . . . 1 . . Branch Access Points 2 | . . . . . . . . 1 . . . 1 . . . . . . . . . Terminal Index 3 | . . . 1 . . . . . 1 . . . . . . . . . . . 1 Scanalyzer Index 1 | . . . 1 . . . . . . . . . . . . . . . . . . Alert Level 5 | . . . . . . . . 2 1 . . . . . . . . 1 . . 1 Unreport Threat 4 | . . . . . . . . . 2 . . . . . . . . 1 . . 1 Locate Traps 4 | . 3 . . . . . . . . . . . . . . . . 1 . . . Patrol Status 1 | . 1 . . . . . . . . . . . . . . . . . . . . Assault Status 1 | . . . . . . . . . . . . . . . . . . . . . 1 Recall Investigation 1 | . . . 1 . . . . . . . . . . . . . . . . . . Recall Assault 1 | . . . 1 . . . . . . . . . . . . . . . . . . Hauler Manifests 2 | . 1 . 1 . . . . . . . . . . . . . . . . . . Registered Components 2 | . . . 1 . . . . 1 . . . . . . . . . . . . . Zone Layout 4 | . . . 1 . . . . . 1 . . 1 . . . . 1 . . . . Derelict Proto ID Bank 1 | . . . . . 1 . . . . . . . . . . . . . . . . Release Object 2 | . . . . . . . . . 2 . . . . . . . . . . . . Fabricator Hacks . | . . . . . . . . . . . . . . . . . . . . . . Repair Station Hacks 8 | . . . 6 . . . . 1 . . . 1 . . . . . . . . . Scan Component 5 | . . . 3 . . . . 1 . . . 1 . . . . . . . . . Repair 3 | . . . 3 . . . . . . . . . . . . . . . . . . Recycling Unit Hacks 11 | . 2 . 1 . . . 1 . 5 . . 1 . . . . 1 . . . . Retrieve Matter 1 | . 1 . . . . . . . . . . . . . . . . . . . . Retrieve Components 10 | . 1 . 1 . . . 1 . 5 . . 1 . . . . 1 . . . . Scanalyzer 4 | . . . 4 . . . . . . . . . . . . . . . . . . Insert Component 1 | . . . 1 . . . . . . . . . . . . . . . . . . Analyze 3 | . . . 3 . . . . . . . . . . . . . . . . . . Garrison Access Hacks . | . . . . . . . . . . . . . . . . . . . . . . Unauthorized Hacks 44 | . 11 . 6 . . . . 7 14 . . 1 . . . . 1 2 . . 2 Terminals 35 | . 9 . 6 . . . . 7 7 . . 1 . . . . 1 2 . . 2 Track 1 | . . . . . . . . 1 . . . . . . . . . . . . . Botnet 9 | . 3 . 1 . . . . 1 1 . . 1 . . . . 1 1 . . . Disrupt 1 | . . . 1 . . . . . . . . . . . . . . . . . . Operators 3 | . 1 . 1 . . . . . . . . . . . . . . 1 . . . Skim 19 | . 5 . 3 . . . . 5 6 . . . . . . . . . . . . Sabotage 2 | . . . . . . . . . . . . . . . . . . . . . 2 Fabricators . | . . . . . . . . . . . . . . . . . . . . . . Repair Stations . | . . . . . . . . . . . . . . . . . . . . . . Recycling Units 9 | . 2 . . . . . . . 7 . . . . . . . . . . . . Tunnel 9 | . 2 . . . . . . . 7 . . . . . . . . . . . . Scanalyzers . | . . . . . . . . . . . . . . . . . . . . . . Garrison Access . | . . . . . . . . . . . . . . . . . . . . . . Data Cores Recovered 3 | . . . 1 . . . . 2 . . . . . . . . . . . . . Used 1 | . . . . . . . . 1 . . . . . . . . . . . . . Hacking Detections 54 | . 9 1 6 . . . 1 9 9 . . 8 . . . . 1 4 2 . 4 Full Trace Events 8 | . . . 2 . . . . 2 1 . . . . . . . . . 1 . 2 Feedback Events 1 | . . . . . . . . . . . . . . . . . . . . . 1 Corruption 1 | . . . . . . . . . . . . . . . . . . . . . 1 Feedback Blocked . | . . . . . . . . . . . . . . . . . . . . . . Robot Schematics Acquired 5 | . . . . . . . . . . . . . . . 5 . . . . . . Robots Built . | . . . . . . . . . . . . . . . . . . . . . . Authchips . | . . . . . . . . . . . . . . . . . . . . . . Time . | . . . . . . . . . . . . . . . . . . . . . . Total Robot Build Rating . | . . . . . . . . . . . . . . . . . . . . . . Part Schematics Acquired 12 | . . 2 1 . . . . . . . . . . . 9 . . . . . . Parts Built . | . . . . . . . . . . . . . . . . . . . . . . Authchips . | . . . . . . . . . . . . . . . . . . . . . . Time . | . . . . . . . . . . . . . . . . . . . . . . Total Part Build Rating . | . . . . . . . . . . . . . . . . . . . . . . Parts Repaired 3 | . . . 3 . . . . . . . . . . . . . . . . . . Time 226 | . . . 226 . . . . . . . . . . . . . . . . . . Parts Recycled . | . . . . . . . . . . . . . . . . . . . . . . Recycled Matter . | . . . . . . . . . . . . . . . . . . . . . . Retrieved Matter . | . . . . . . . . . . . . . . . . . . . . . . Retrieved Components 42 | . 9 . 10 . . . 1 . 12 . . 10 . . . . . . . . . Parts Scanalyzed 1 | . . . 1 . . . . . . . . . . . . . . . . . . Part Schematics Acquired 1 | . . . 1 . . . . . . . . . . . . . . . . . . Parts Damaged 1 | . . . 1 . . . . . . . . . . . . . . . . . . Bothacking | -11 -10 -10 -9 -9 -9 -8 -8 -8 -8 -6 -6 -6 -6 -6 -6 -5 -5 -5 -5 -5 -5 ------------ Run | Yrd Mat Min Mat Min Exi Min Mat Sto Rec Fac Was Fac Low Low Dat Pro Fac Ext Cet Arc Hub Used RIF Installer . | . . . . . . . . . . . . . . . . . . . . . . Robots Hacked 7 | . . . . . 3 . . 1 3 . . . . . . . . . . . . Non-combat 3 | . . . . . 2 . . . 1 . . . . . . . . . . . . Combat 4 | . . . . . 1 . . 1 2 . . . . . . . . . . . . Robot Hacks Applied 8 | . . . . . 3 . . 2 3 . . . . . . . . . . . . parse_system 7 | . . . . . 3 . . 2 2 . . . . . . . . . . . . find_recycling 1 | . . . . . . . . . 1 . . . . . . . . . . . . Relay Couplers Released 1 | . . . . . . . . 1 . . . . . . . . . . . . . Machine Destruction 1 | . . . . . . . . 1 . . . . . . . . . . . . . Fabnet Peak Effective % . | . . . . . . . . . . . . . . . . . . . . . . Robots Rewired 24 | . . . . . . . . . 18 . . . . . . . . 6 . . . Allies Hacked . | . . . . . . . . . . . . . . . . . . . . . . Hacks Repelled . | . . . . . . . . . . . . . . . . . . . . . . Allies | -11 -10 -10 -9 -9 -9 -8 -8 -8 -8 -6 -6 -6 -6 -6 -6 -5 -5 -5 -5 -5 -5 -------- Run | Yrd Mat Min Mat Min Exi Min Mat Sto Rec Fac Was Fac Low Low Dat Pro Fac Ext Cet Arc Hub Total Allies 44 | . . . . 2 . . . . 18 . . . . . . . . 19 5 . . Largest Group 14 | . . . . 2 2 . . . 11 6 5 . . . . . . 14 13 7 4 Highest-Rated Group 775 | . . . . 43 43 . . . 201 129 121 . . . . . . 541 775 600 384 Highest-Rated Ally 159 | . . . . 31 31 . . . 34 34 34 . . . . . . 159 159 159 96 Total Orders 22 | . . . . . . . . . 5 . . . 4 . . 5 . 2 1 5 . STAY 9 | . . . . . . . . . 3 . . . . . . 2 . 1 1 2 . FOLLOW 6 | . . . . . . . . . 2 . . . . . . . . 1 . 3 . EXPLORE 4 | . . . . . . . . . . . . . 2 . . 2 . . . . . RETURN 3 | . . . . . . . . . . . . . 2 . . 1 . . . . . Ally Attacks 288 | . . . . 1 9 . . . 24 . 3 . . . . . . 88 57 17 89 Total Damage 8320 | . . . . 22 554 . . . 442 . 398 . . . . . . 1350 1233 600 3721 Kills 51 | . . . . 1 1 . . . 5 . 1 . . . . . . 13 7 2 21 Allies Corrupted . | . . . . . . . . . . . . . . . . . . . . . . Allies Melted 1 | . . . . . . . . . 1 . . . . . . . . . . . . Turrets Deployed 2 | . . . . . 2 . . . . . . . . . . . . . . . . Intel | -11 -10 -10 -9 -9 -9 -8 -8 -8 -8 -6 -6 -6 -6 -6 -6 -5 -5 -5 -5 -5 -5 ------- Run | Yrd Mat Min Mat Min Exi Min Mat Sto Rec Fac Was Fac Low Low Dat Pro Fac Ext Cet Arc Hub Robot Analysis Total 9 | . 2 . . . . . . 1 4 . . 1 . . . . . 1 . . . Derelict Logs Recovered 5 | . . . . 2 . . . . . . . . 1 . . 2 . . . . . Drone Launches 4 | . . . . . . . . . . . . . 2 . . 2 . . . . . Drone Recoveries 3 | . . . . . . . . . . . . . 2 . . 1 . . . . . Exploration | -11 -10 -10 -9 -9 -9 -8 -8 -8 -8 -6 -6 -6 -6 -6 -6 -5 -5 -5 -5 -5 -5 ------------- Run | Yrd Mat Min Mat Min Exi Min Mat Sto Rec Fac Was Fac Low Low Dat Pro Fac Ext Cet Arc Hub Turns Passed 31270 | . 1844 2251 3787 1101 2882 977 208 2370 4323 264 214 2893 1360 363 39 233 301 3405 502 564 1389 Spaces Moved 10489 | 1 741 839 1197 420 975 359 66 612 1192 117 88 906 560 461 78 326 215 530 199 192 415 Core 865 | . . . . . . . . 1 . . . . . 391 78 326 48 . . 2 19 Treads 7804 | . 730 629 1125 420 975 359 66 611 1176 117 88 565 . . . . 167 148 199 190 239 Legs 343 | 1 11 . . . . . . . 16 . . 303 . . . . . . . . 12 Wheels 1477 | . . 210 72 . . . . . . . . 38 560 70 . . . 382 . . 145 Hover . | . . . . . . . . . . . . . . . . . . . . . . Flight . | . . . . . . . . . . . . . . . . . . . . . . Fastest Speed 50 | 120 120 145 145 240 160 240 240 320 199 199 199 199 138 50 50 50 50 110 125 125 50 Average Speed 217 | 120 201 220 234 240 238 240 252 324 287 199 199 271 164 65 50 54 94 151 166 179 212 Slowest Speed 2900 | 120 240 320 400 240 240 240 320 2900 404 199 199 911 250 153 50 200 146 225 249 2000 490 Overloaded Moves . | . . . . . . . . . . . . . . . . . . . . . . Propulsion Burnouts . | . . . . . . . . . . . . . . . . . . . . . . Robots Hopped . | . . . . . . . . . . . . . . . . . . . . . . Cave-ins Triggered 2 | . . . . . . . . . . . . . . . . . . . . . 2 Exploration Rate (%) 59 | 2 96 93 89 58 85 75 11 84 98 5 81 28 58 62 70 56 6 63 71 73 55 Regions Visited 21 Branch Regions 14 Pre-discovered Areas 17 | . 3 . . 2 1 . . . 10 . . . . . 1 . . . . . . Known Exits Taken 14 | . . 1 . . . 1 1 1 1 . . 1 1 1 1 1 1 1 1 1 . Unknown Exits Taken 5 | 1 1 . 1 1 1 . . . . . . . . . . . . . . . . Scrap Searched 17 | . . 1 . . . 1 . . . . . . 13 2 . . . . . . . Spaces Dug 138 | . . 2 28 . 5 8 . 5 1 . 13 40 24 . . 3 2 5 . . 2 Terrain Destroyed 666 | . . 13 65 . 15 71 . 12 1 . 19 150 25 . . 5 5 24 . 15 246 Melee 33 | . . . . . 1 . . 3 1 . 13 10 5 . . . . . . . . Projectile 154 | . . 6 18 . 8 . . 9 . . . 17 1 . . 5 5 24 . 15 46 AOE 479 | . . 7 47 . 6 71 . . . . 6 123 19 . . . . . . . 200 Terrain Rammed . | . . . . . . . . . . . . . . . . . . . . . . Walls Destroyed . | . . . . . . . . . . . . . . . . . . . . . . Machines Disabled . | . . . . . . . . . . . . . . . . . . . . . . Actions | -11 -10 -10 -9 -9 -9 -8 -8 -8 -8 -6 -6 -6 -6 -6 -6 -5 -5 -5 -5 -5 -5 --------- Run | Yrd Mat Min Mat Min Exi Min Mat Sto Rec Fac Was Fac Low Low Dat Pro Fac Ext Cet Arc Hub Total 17406 | . 922 1054 1898 469 1381 465 110 894 2026 138 111 1183 989 525 77 377 304 3064 358 359 702 Wait 5046 | . 33 110 492 27 194 87 22 74 681 1 4 86 384 46 . 43 72 2410 118 113 49 Move 10469 | . 740 838 1196 419 974 358 65 611 1191 117 87 905 559 460 77 325 214 529 198 191 415 Hop . | . . . . . . . . . . . . . . . . . . . . . . Pick Up 256 | . 30 5 20 1 39 3 8 30 15 6 3 20 8 3 . . 1 22 13 10 19 Fast Attach 85 | . 1 1 8 1 7 1 1 17 3 1 . 5 7 3 . . 4 3 1 3 18 Attach 85 | . 5 1 8 . 8 1 3 3 6 4 . 7 7 1 . 1 2 6 2 4 16 Detach 36 | . . . 3 . 4 . 1 3 4 1 . 7 . 1 . 1 1 1 4 1 4 Swap 124 | . 7 8 24 . 5 3 3 22 14 2 3 3 3 1 . 1 . 1 4 2 18 Drop 270 | . 16 5 24 1 44 2 6 47 26 1 . 23 12 9 . 1 2 13 6 10 22 Fire 923 | . 90 85 123 20 94 8 . 77 63 5 1 111 4 1 . 5 8 51 12 25 140 Melee 91 | . . . . . 12 2 1 8 22 . 13 16 5 . . . . 12 . . . Ram 1 | . . . . . . . . . . . . . . . . . . . . . 1 Kick . | . . . . . . . . . . . . . . . . . . . . . . Crush 2 | . . 1 . . . . . . 1 . . . . . . . . . . . . Escape Stasis 18 | . . . . . . . . 2 . . . . . . . . . 16 . . . Rewire . | . . . . . . . . . . . . . . . . . . . . . . Trap . | . . . . . . . . . . . . . . . . . . . . . . Miscellaneous . | . . . . . . . . . . . . . . . . . . . . . . Route ------- -11/Scrapyard -10/Materials (discovered 5 exits: *Mat x3 / *Min / Sub) -10/Mines (discovered 2 exits: *Mat x2) -9/Materials (discovered 4 exits: *Mat x3 / [*Min]) -9/Mines (discovered 3 exits: *Mat x2 / *Exi) -9/Exiles -8/Mines -8/Materials (discovered 2 exits: *Sto x2) -8/Storage (discovered 2 exits: [*Fac] / *Rec) -8/Recycling -6/Factory (discovered 2 exits: *Low x2) -6/Waste -6/Factory (discovered 3 exits: *Fac / *Low x2) -6/Lower Caves -6/Lower Caves (discovered 2 exits: *Fac / *Dat) -6/Data Miner -5/Proximity Caves -5/Factory (discovered 2 exits: *Ext x2) -5/Extension (discovered 2 exits: *Fac / *Cet) -5/Cetus (discovered 2 exits: *Fac / *Arc) -5/Archives (discovered 3 exits: *Fac / *Hub x2) -5/Hub_04(d) History --------- Turn | Location | Event 1 | -11/Scrapyard | Discovered new exit (range 0) 1 | -11/Scrapyard | Entered Materials 114 | -10/Materials | Discovered new exit (range 13) 186 | -10/Materials | Central database locked down 310 | -10/Materials | Build established: Mutant 348 | -10/Materials | Discovered new exit (range 16) 442 | -10/Materials | Identified exit to Subcaves 442 | -10/Materials | Identified exit to Materials 498 | -10/Materials | Learned location of Recycling (-8) 542 | -10/Materials | Learned location of 1 exit from Recycling 1845 | -10/Materials | Entered Mines 1961 | -10/Mines | Received a Rocket Launcher from a helpful Derelict 2111 | -10/Mines | Excavation squad dispatched 2111 | -10/Mines | A large section of the Mines collapsed 2361 | -10/Mines | Excavation squad dispatched 2611 | -10/Mines | Excavation squad dispatched 2858 | -10/Mines | Discovered exit to Materials (range 8) 3315 | -10/Mines | Found a damaged Exp. Sensor Array with a note attached 3322 | -10/Mines | Found Prototype Device 3403 | -10/Mines | Met a Derelict shopkeep closing up shop 3582 | -10/Mines | Discovered exit to Materials (range 5) 4096 | -10/Mines | Entered Materials 4096 | -9/Materials | Evolved 2 slots: Utility x1, Weapon x1 4563 | -9/Materials | Build established: Scavenger-Tank 4748 | -9/Materials | Discovered new exit (range 16) 5065 | -9/Materials | Discovered new exit (range 8) 5099 | -9/Materials | Identified Exp. Sensor Array 5675 | -9/Materials | Repaired Broken Exp. Sensor Array 5741 | -9/Materials | Repaired Lgt. Treads 6241 | -9/Materials | Discovered new exit (range 16) 6645 | -9/Materials | Discovered new exit (range 16) 7168 | -9/Materials | Build established: Tank 7296 | -9/Materials | First assault squad dispatched 7618 | -9/Materials | Repaired Broken Imp. Assault Rifle 7883 | -9/Materials | Entered Mines 7895 | -9/Mines | Learned location of Zion (-7) 8239 | -9/Mines | Identified exit to Materials 8375 | -9/Mines | Discovered exit to Materials (range 9) 8473 | -9/Mines | Deemed a non-threat by the Exiles lab entrance 8473 | -9/Mines | Discovered new exit (range 5) 8984 | -9/Mines | Entered Exiles 8984 | -9/Exiles | Accompanied by 2 allies 9014 | -9/Exiles | Led the pair of lost Derelicts to a safe place 9056 | -9/Exiles | Met 8R-AWN 9094 | -9/Exiles | Met EX-HEX 9162 | -9/Exiles | Met EX-BIN 9190 | -9/Exiles | Aligned with FarCom system 9193 | -9/Exiles | Given EX-Vault access code 9248 | -9/Exiles | Opened EX-Vault 9300 | -9/Exiles | Build established: Mutant 9360 | -9/Exiles | Found Deploy-a-Sentry 9363 | -9/Exiles | Found Deploy-a-Sentry 9367 | -9/Exiles | Found Deploy-a-Sentry 9418 | -9/Exiles | Warned to stay clear of 0b10 Research branches 9492 | -9/Exiles | Met EX-DEC 9586 | -9/Exiles | Discovered new exit (range 10) 10700 | -9/Exiles | Attacked by the Exiles 10828 | -9/Exiles | DAS Turret deployed 10841 | -9/Exiles | Core integrity fell below 50% 10875 | -9/Exiles | DAS Turret deployed 10876 | -9/Exiles | Allies destroyed 8R-AWN 11329 | -9/Exiles | Destroyed EX-HEX 11342 | -9/Exiles | Destroyed EX-BIN 11532 | -9/Exiles | Core integrity fell below 20% 11535 | -9/Exiles | Destroyed EX-DEC 11540 | -9/Exiles | Found Prototype Energy Gun 11540 | -9/Exiles | Identified AWS/EX-DEC 11548 | -9/Exiles | Found Prototype Processor 11554 | -9/Exiles | Found Deploy-a-Sentry 11579 | -9/Exiles | Identified Exp. Core Analyzer 11837 | -9/Exiles | Build established: Scavenger-Mutant 11866 | -9/Exiles | Entered Mines 12819 | -8/Mines | Discovered exit to Materials (range 11) 12843 | -8/Mines | Entered Materials 12843 | -8/Materials | Evolved 2 slots: Propulsion x1, Utility x1 12844 | -8/Materials | Identified exit to Storage 12886 | -8/Materials | Build established: Scavenger-Tank 12944 | -8/Materials | Discovered exit to Storage (range 10) 13051 | -8/Materials | Entered Storage 13284 | -8/Storage | Build established: Hauler-Mutant 13837 | -8/Storage | Build established: Hauler-Tank 13871 | -8/Storage | Met 01-MTF 14210 | -8/Storage | Discovered new exit (range 16) 14493 | -8/Storage | Identified exit to Recycling 15408 | -8/Storage | Used back door to open Recycling access 15421 | -8/Storage | Entered Recycling 15422 | -8/Recycling | Identified exit to Factory 15622 | -8/Recycling | Lost 3 parts (1n2u) 15624 | -8/Recycling | Destroyed 7 combat bots 16019 | -8/Recycling | Build established: Commander-Mutant 16349 | -8/Recycling | Build established: Commander-Tank 16666 | -8/Recycling | Lost 7 allies 17095 | -8/Recycling | Learned Factory terminal intel 17368 | -8/Recycling | Learned 2 Storage zone layouts 17464 | -8/Recycling | Identified exit to Scraptown 17475 | -8/Recycling | Scanned before Scraplab entrance 17521 | -8/Recycling | Entered Scraplab 17586 | -8/Recycling | Learned location of Lower Caves (-7) 17798 | -8/Recycling | Angered Scraplab inhabitants 17837 | -8/Recycling | Lost 3 allies 17876 | -8/Recycling | Found Prototype Device 17876 | -8/Recycling | Identified Scrap Engine 18375 | -8/Recycling | Build established: Commander-Construct 19133 | -8/Recycling | Build established: Hauler-Construct 19744 | -8/Recycling | Entered Factory 19744 | -6/Factory | Accompanied by 6 allies 19744 | -6/Factory | Evolved 4 slots: Propulsion x1, Utility x2, Weapon x1 19745 | -6/Factory | Identified exit to Lower Caves 19746 | -6/Factory | Loaded intel: 25 terminal locations 20008 | -6/Factory | Sucked down chute 20008 | -6/Factory | Entered Waste 20023 | -6/Waste | EMP discharged 20023 | -6/Waste | System corruption reached 10% 20101 | -6/Waste | Spotted C-40 Crusher 20104 | -6/Waste | Spotted C-40 Crusher 20109 | -6/Waste | Spotted C-40 Crusher 20118 | -6/Waste | 6 allies followed down the chute 20123 | -6/Waste | EMP discharged 20159 | -6/Waste | Spotted C-40 Crusher 20164 | -6/Waste | Lost 6 allies 20197 | -6/Waste | Discovered new exit (range 10) 20210 | -6/Waste | Spotted C-40 Crusher 20222 | -6/Waste | Entered Factory 20564 | -6/Factory | Destroyed 8 combat bots 21566 | -6/Factory | Discovered new exit (range 3) 22715 | -6/Factory | Build established: Hauler-Mutant 22892 | -6/Factory | Lost 3 parts (3n) 23115 | -6/Factory | Entered Lower Caves 23192 | -6/Lower Caves | Learned 4 Factory zone layouts 23204 | -6/Lower Caves | Learned Factory security intel 24275 | -6/Lower Caves | Discovered new exit (range 16) 24294 | -6/Lower Caves | Identified exit to Lower Caves 24475 | -6/Lower Caves | Entered another Lower Caves area 24607 | -6/Lower Caves | Discovered new exit (range 5) 24615 | -6/Lower Caves | Identified exit to Factory 24636 | -6/Lower Caves | Attracted the attention of an 0b10 outpost 24834 | -6/Lower Caves | Discovered new exit (range 7) 24836 | -6/Lower Caves | Identified exit to Data Miner 24838 | -6/Lower Caves | Entered Data Miner 24838 | -6/Data Miner | Discovered new exit (range 6) 24848 | -6/Data Miner | Met Data Miner 24861 | -6/Data Miner | Learned location of Section 7 (-2) 24861 | -6/Data Miner | Acquired the access code to Warlord's prototype stash 24866 | -6/Data Miner | Received God Mode back door access code from Data Miner 24876 | -6/Data Miner | Identified exit to Proximity Caves 24877 | -6/Data Miner | Entered Proximity Caves 24954 | -5/Proximity Caves | Build established: Scavenger-Mutant 25035 | -5/Proximity Caves | Learned 4 Factory zone layouts 25036 | -5/Proximity Caves | Learned Factory stockpile data 25055 | -5/Proximity Caves | Spotted B-75 Beast 25101 | -5/Proximity Caves | Discovered exit to Factory (range 14) 25110 | -5/Proximity Caves | Entered Factory 25110 | -5/Factory | Evolved 2 slots: Utility x2 25111 | -5/Factory | Identified exit to Extension 25304 | -5/Factory | Discovered exit to Extension (range 16) 25361 | -5/Factory | Build established: Mutant 25411 | -5/Factory | Entered Extension 25453 | -5/Extension | Rescued a captive Derelict 25454 | -5/Extension | Rescued a captive Derelict 25737 | -5/Extension | Rescued a captive Derelict 25738 | -5/Extension | Rescued a captive Derelict 25873 | -5/Extension | Rescued a captive Derelict 25874 | -5/Extension | Rescued a captive Derelict 25889 | -5/Extension | Rescued a captive Derelict 25890 | -5/Extension | Rescued a captive Derelict 26151 | -5/Extension | Rescued a captive Derelict 26152 | -5/Extension | Rescued a captive Derelict 26240 | -5/Extension | Rescued a captive Derelict 26241 | -5/Extension | Rescued a captive Derelict 26345 | -5/Extension | Build established: Commander-Mutant 26356 | -5/Extension | Rescued A7 26414 | -5/Extension | Discovered new exit (range 10) 26416 | -5/Extension | Discovered new exit (range 6) 26462 | -5/Extension | Identified exit to Factory 26477 | -5/Extension | Identified exit to Cetus 28816 | -5/Extension | Entered Cetus 28816 | -5/Cetus | Accompanied by 13 allies (A7) 28821 | -5/Cetus | Acquired a Cetus Manufacturing Module code from A7 28833 | -5/Cetus | Spotted Cetus Guard 28833 | -5/Cetus | Spotted Cetus Guard 28833 | -5/Cetus | Spotted Cetus Guard 28834 | -5/Cetus | Allies destroyed Cetus Guard 28844 | -5/Cetus | Spotted Cetus Guard 28857 | -5/Cetus | Allies destroyed Cetus Guard 28862 | -5/Cetus | Allies destroyed Cetus Guard 28863 | -5/Cetus | Allies destroyed Cetus Guard 28890 | -5/Cetus | Lost 5 allies 29055 | -5/Cetus | Started Cetus Manufacturing Module 29079 | -5/Cetus | Discovered new exit (range 15) 29080 | -5/Cetus | Manufactured an Enhanced Grunt 29105 | -5/Cetus | Manufactured an Enhanced Grunt 29130 | -5/Cetus | Manufactured an Enhanced Grunt 29155 | -5/Cetus | Manufactured an Enhanced Grunt 29180 | -5/Cetus | Manufactured an Enhanced Grunt 29185 | -5/Cetus | Spotted Cetus Guard 29186 | -5/Cetus | Spotted Cetus Guard 29189 | -5/Cetus | Spotted Cetus Guard 29189 | -5/Cetus | Spotted Cetus Guard 29190 | -5/Cetus | Allies destroyed Cetus Guard 29196 | -5/Cetus | Destroyed Cetus Guard 29197 | -5/Cetus | Destroyed Cetus Guard 29200 | -5/Cetus | Allies destroyed Cetus Guard 29214 | -5/Cetus | Discovered exit to Factory (range 15) 29220 | -5/Cetus | Met Revision 17 29295 | -5/Cetus | Identified exit to Archives 29318 | -5/Cetus | Entered Archives 29318 | -5/Archives | Accompanied by 8 allies (A7) 29395 | -5/Archives | Lost 3 allies 29471 | -5/Archives | Found Prototype Device 29491 | -5/Archives | Discovered new exit (range 16) 29633 | -5/Archives | Identified Exp. Thermal Shield 29684 | -5/Archives | Discovered exit to Factory (range 15) 29799 | -5/Archives | Discovered new exit (range 16) 29874 | -5/Archives | Identified exit to Hub_04(d) 29882 | -5/Archives | Entered Hub_04(d) 29882 | -5/Hub_04(d) | Accompanied by 4 allies 29907 | -5/Hub_04(d) | Garrison activated, responded to threat 29932 | -5/Hub_04(d) | Build established: Scavenger-Gunner 30220 | -5/Hub_04(d) | Network Hub disabled 30240 | -5/Hub_04(d) | Spotted Lightning 30244 | -5/Hub_04(d) | Spotted Lightning 30250 | -5/Hub_04(d) | Spotted Lightning 30265 | -5/Hub_04(d) | Allies destroyed Lightning 30267 | -5/Hub_04(d) | Destroyed Lightning 30286 | -5/Hub_04(d) | Crushed by falling debris 30286 | -5/Hub_04(d) | System corruption reached 10% 30297 | -5/Hub_04(d) | Crushed by falling debris 30301 | -5/Hub_04(d) | Destroyed Lightning 30307 | -5/Hub_04(d) | Spotted Lightning 30308 | -5/Hub_04(d) | Spotted Lightning 30314 | -5/Hub_04(d) | Found Prototype Device 30314 | -5/Hub_04(d) | Identified Exp. EM Disruption Field 30323 | -5/Hub_04(d) | Destroyed Lightning 30327 | -5/Hub_04(d) | Spotted Lightning 30328 | -5/Hub_04(d) | Lost 3 parts (2u1w) 30332 | -5/Hub_04(d) | Spotted Lightning 30338 | -5/Hub_04(d) | Spotted Lightning 30357 | -5/Hub_04(d) | Spotted Lightning 30381 | -5/Hub_04(d) | Network Hub disabled 30392 | -5/Hub_04(d) | Destroyed Lightning 30413 | -5/Hub_04(d) | Destroyed Lightning 30452 | -5/Hub_04(d) | Destroyed Lightning 30457 | -5/Hub_04(d) | Destroyed Lightning 30458 | -5/Hub_04(d) | System corruption reached 30% 30482 | -5/Hub_04(d) | First assault squad dispatched 30497 | -5/Hub_04(d) | Destroyed Lightning 30501 | -5/Hub_04(d) | Core integrity fell below 50% 30553 | -5/Hub_04(d) | Found Exp. Targeting Computer 30554 | -5/Hub_04(d) | Lost 9 parts (1p1n3u4w) 30556 | -5/Hub_04(d) | Found Prototype Energy Cannon 30565 | -5/Hub_04(d) | Found Exp. EM Disruption Field 30573 | -5/Hub_04(d) | Found Prototype Energy Cannon 30573 | -5/Hub_04(d) | Identified EMDS (x2) 30577 | -5/Hub_04(d) | Found EMDS 30660 | -5/Hub_04(d) | Found EMDS 30673 | -5/Hub_04(d) | Found Prototype Device 30673 | -5/Hub_04(d) | Identified Exp. Phase Shifter 30677 | -5/Hub_04(d) | Found Exp. Phase Shifter 30687 | -5/Hub_04(d) | Found EMDS 30697 | -5/Hub_04(d) | Found Exp. Phase Shifter 30708 | -5/Hub_04(d) | Found Exp. EM Disruption Field 30808 | -5/Hub_04(d) | Found EMDS 30812 | -5/Hub_04(d) | Incoming assault squad redirected 30817 | -5/Hub_04(d) | Found Exp. Phase Shifter 30822 | -5/Hub_04(d) | Found Exp. Targeting Computer 30880 | -5/Hub_04(d) | Build established: Scavenger-Tank 31086 | -5/Hub_04(d) | Network Hub disabled 31180 | -5/Hub_04(d) | Core integrity fell below 20% 31199 | -5/Hub_04(d) | High security lockdown imminent 31219 | -5/Hub_04(d) | Lost 7 parts (1p2n4w) 31258 | -5/Hub_04(d) | Released all parts (10) 31271 | -5/Hub_04(d) | Destroyed by H-71 Marshal with Heavy Mass Driver Last Messages --------------- 31256_ Destroyed Smartbomb Launcher. 31258_ Released Carbon-fiber Leg. 31258_ Released Adv. Energy Well. 31258_ Released Exp. Targeting Computer. 31258_ Released Enh. Biometal Leg. 31258_ Released Exp. Heat Sink. 31258_ Released Arm. Scrap Engine. 31258_ Released Huge Storage Unit. 31258_ Released Imp. Hacking Suite. 31258_ Released Centrium Medium Armor Plating. 31258_ Released Carbon-fiber Leg. 31259_ The unstable cave ceiling collapses. 31260_ System corrupted: Matter fused (-8). 31262_ ALERT: Suspicious intruders detected, dispatching Cutter reinforcements to area. 31264_ ALERT: Performing unscheduled system reset. 31265_ W-25 Informer sends out distress signal. 31266_ Dropped Adv. Power Amplifier. 31267_ Acquired Unknown Energy Cannon. 31271_ Slug penetrates Wall. Map ----- +----------------------------------------------------+ | #???#] # + #? ???????????????????????? | | " #???# # """ # #?"""" ???????????????????????? | | #???# "# ?# # """" ???????????????????????? | | /##???# # """ # # """" #??????????????????????? | | #????# "# # / """" #??????????????????????? | | #????# "# """ + # #??????????????????????? | | #????# "# # # #??????????????????????? | | ###### ####?## ########??????????????????????? | | %# ]##+####### #????????????????????????????? | | =/%* % [!%== !%*#????????????????????????????? | | !#[ =%= [![%= [#????????????????????????????? | | =#! ########## #????????????????????????????? | | ##![##????????## ##????????????????????????????? | | =% #????????# #?????????????????????????????? | | % = #####???# #?????????????????????????????? | | ![%*= #???# ?????????????????????????????? | | *%== ????# ##????????????????????????????? | | %# ######+##???????????#?????????????????? | | % ???????????? #?????????????????? | | # ? ???????????? +?????????????????? | | / ??""??????????? #?????????????????? | | ?? ?????????? #?????????????????? | | * #+#???########## H #??????????????????? | | [ = #???# # ???????????????????? | | %! !!! # ##### """ % ? #??????????????????? | | = !!!!= # + "T ! @# #??????????????????? | | *!==!! ####### " w #??????????????????? | | !!!* #???# # #??????????????????? | | """"" */!"" #???# """ # #??????????????????? | | #???# [ #? #??????????????????? | | ##???# """ #?? #??????????????????? | | ####### ####????# #???#??????????????????? | | ??????####???????##########??????????????????????? | | ?????????????????????????????????????????????????? | | ?????????????????????????????????????????????????? | | ?????????????????????????????????????????????????? | | ?????????????????????????????????????????????????? | | ?????????????????????????????????????????????????? | | ?????????????????????????????????????????????????? | | ?????????????????????????????????????????????????? | | ?????????????????????????????????????????????????? | | ?????????????????????????????????????????????????? | | ?????????????????????????????????????????????????? | | ?????????????????????????????????????????????????? | | ?????????????????????????????????????????????????? | | ?????????????????????????????????????????????????? | | ?????????????????????????????????????????????????? | | ?????????????????????????????????????????????????? | | ?????????????????????????????????????????????????? | | ?????????????????????????????????????????????????? | +----------------------------------------------------+ Best States ------------- Heat Dissipation 66 Coolant Potential 80 Energy Generation 31 Energy Capacity 600 Matter Stores 300 Matter Capacity 300 Sight Range 16 Robot Scan Range 20 Terrain Scan Density 10 Jamming Range 14 Power Amplification 30 Armor Coverage 900 Resistance: KI 25 Resistance: TH 30 Resistance: EX 25 Resistance: EM 75 Utility Shielding 66 Weapon Cycling 20 Phase Shifting 20 Evasion (%) 60 Targeting Accuracy 12 Core Analysis 8 Recoil Reduction 4 Matter Filtering 30 Offensive Hacking 26 Item Schematics ----------------- Cargo Storage Unit | -10/Mines | Hacked Huge Storage Unit | -10/Mines | Hacked Exp. Sensor Array | -9/Materials | Scanalyzed Combat Drone Bay | -6/Data Miner | Free Lgt. Regenerative Plating | -6/Data Miner | Free Enh. Armored Leg | -6/Data Miner | Free Prc. Energy Filter | -6/Data Miner | Free Kinetic Spear | -6/Data Miner | Free Impulse Thruster | -6/Data Miner | Free Nanoactuators | -6/Data Miner | Free Adv. Datajack | -6/Data Miner | Free Antimatter Reactor | -6/Data Miner | Free Robot Schematics ------------------ B-60 Warrior | -6/Data Miner | Free R-10 Processor | -6/Data Miner | Free Y-64 Sentinel | -6/Data Miner | Free M-36 Artificer | -6/Data Miner | Free A-15 Conveyor | -6/Data Miner | Free Fabricated ------------ Nothing Alien Tech Used ----------------- None Achievements -------------- None Challenges ------------ None Game ------ Seed AssemblyMiniPurifier Manual? 0 Play Time 03:44:12 Cumulative 284.8 hours Start 2024.09.05 @ 21:32:50 End 2024.09.08 @ 18:52:21 Sessions 9 Manual Loads 0 Difficulty Rogue Special Mode None Game No. 142 Rogue 142 Adventurer 0 Explorer 0 Win Type - Total 8 Types 4/1/3/0/0/0/0/0/0 Lore% 78 Gallery% 85 Achievement% 71 Wizard Run 0 Options --------- Layout 0 ASCII 0 Keyboard 0 Movement Mouse Keybinds 0 Fullscreen 2 Font 18/SmallcapsGlow Map View 76x50 Zoom Use 0% Tactical HUD 1 Map Filters NONE Filters NONE Steam 1 RUN: 719c41f6-51d9-49ea-b71e-f13938ca7269